bitfinex/quotes_BTCUSD_20230404
["timestamp","ask_amount","ask_price","bid_price","bid_amount"]
[1680597950195,1.03921287,28091.0,28090.0,0.48541548]
[1680597950383,1.14313416,28091.0,28090.0,0.48541548]
[1680597951150,1.03921287,28091.0,28090.0,0.48541548]
[1680597951407,1.26353148,28091.0,28090.0,0.48541548]
[1680597951662,1.03921287,28091.0,28090.0,0.48541548]
[1680597953872,0.60034874,28091.0,28090.0,0.48541548]
[1680597954089,0.55690674,28091.0,28090.0,0.48541548]
[1680597955626,0.65527086,28091.0,28090.0,0.48541548]
[1680597955915,0.35690674,28091.0,28090.0,0.48541548]
[1680597956157,0.06672674,28091.0,28090.0,0.62749229]
[1680597956373,0.06672674,28091.0,28090.0,0.58586548]
[1680597956374,0.06502674,28091.0,28090.0,0.58586548]
[1680597957050,0.03802674,28091.0,28090.0,0.58586548]
[1680597957281,0.01972674,28091.0,28090.0,0.61741397]
[1680597957508,0.00518,28095.0,28091.0,0.3]
[1680597957758,0.00512,28095.0,28092.0,0.015411]
[1680597958009,0.005,28095.0,28092.0,0.015411]
[1680597958243,0.005,28095.0,28092.0,0.05249137]
[1680597958494,0.005,28095.0,28093.0,0.0149]
[1680597958939,0.006,28095.0,28093.0,0.0149]
[1680597959154,0.006,28095.0,28092.0,0.04508037]
[1680597959376,0.006,28095.0,28093.0,0.01548]
[1680597959377,0.05569046,28094.0,28093.0,0.01548]
[1680597960070,0.05569046,28094.0,28092.0,0.04508037]
[1680597960298,0.05569046,28094.0,28093.0,0.04551337]
[1680597960519,0.05569046,28094.0,28093.0,0.03439837]
[1680597960735,0.05569046,28094.0,28093.0,0.03039837]
[1680597961238,0.05769046,28094.0,28093.0,0.03039837]
[1680597961458,0.05569046,28094.0,28093.0,0.03039837]
[1680597961673,0.05569046,28094.0,28093.0,0.03439837]
[1680597962570,0.05569046,28094.0,28093.0,0.03039837]
[1680597962786,0.05769046,28094.0,28093.0,0.03839837]
[1680597963002,0.05569046,28094.0,28093.0,0.03039837]
[1680597963220,0.05569046,28094.0,28093.0,0.03439837]
[1680597963839,0.05569046,28094.0,28093.0,0.03039837]
[1680597964061,0.05769046,28094.0,28093.0,0.03839837]
[1680597964274,0.05569046,28094.0,28093.0,0.03039837]
[1680597964486,0.05569046,28094.0,28093.0,0.03439837]
[1680597965382,0.05569046,28094.0,28093.0,0.03039837]
[1680597965596,0.05569046,28094.0,28093.0,0.03839837]
[1680597965597,0.05769046,28094.0,28093.0,0.03839837]
[1680597965811,0.05569046,28094.0,28093.0,0.03039837]
[1680597966006,0.05569046,28094.0,28093.0,0.03439837]
[1680597966412,0.05569046,28094.0,28091.0,0.12287436]
[1680597966647,0.05569046,28094.0,28093.0,0.008]
[1680597966648,0.45338796,28094.0,28093.0,0.008]
[1680597966767,0.79458496,28094.0,28090.0,0.51820335]
[1680597966978,0.0799585,28093.0,28090.0,0.51820335]
[1680597967190,0.0801385,28093.0,28090.0,0.51820335]
[1680597967400,0.13187142,28093.0,28090.0,0.51820335]
[1680597967806,0.53805005,28093.0,28090.0,0.51820335]
[1680597968209,0.53905005,28093.0,28090.0,0.52520335]
[1680597968426,0.45909155,28093.0,28090.0,0.52520335]
[1680597971917,0.45909155,28093.0,28090.0,0.37515565]
[1680597972153,0.4017,28091.0,28090.0,0.34236778]
[1680597972387,0.68473146,28091.0,28090.0,0.34236778]
[1680597972597,0.69832481,28091.0,28090.0,0.34236778]
[1680597973057,0.9160141,28091.0,28090.0,0.34236778]
[1680597973492,0.9674011,28091.0,28090.0,0.34236778]
[1680597973702,0.9674011,28091.0,28090.0,0.33536778]
[1680597973923,0.9894011,28091.0,28090.0,0.33636778]
[1680597974135,0.9894011,28091.0,28090.0,0.33536778]
[1680597974343,1.11534121,28091.0,28090.0,0.33636778]
[1680597975200,1.06634121,28091.0,28090.0,0.33536778]
[1680597975419,1.09334121,28091.0,28090.0,0.33636778]
[1680597976052,0.91328946,28091.0,28090.0,0.33636778]
[1680597976278,1.36716598,28091.0,28090.0,0.33636778]
[1680597976925,1.35357263,28091.0,28090.0,0.33636778]
[1680597977367,1.35357263,28091.0,28090.0,0.32636778]
[1680597978427,1.17558263,28091.0,28090.0,0.32636778]
[1680597979074,1.17558263,28091.0,28090.0,0.32654778]
[1680597979792,1.17558263,28091.0,28090.0,0.32636778]
[1680597980013,0.72170611,28091.0,28090.0,0.32636778]
[1680597980241,1.08926102,28091.0,28090.0,0.32636778]
[1680597983442,0.622766,28091.0,28090.0,0.32636778]
[1680597983702,1.01946827,28091.0,28090.0,0.32636778]
[1680597985291,0.809256,28091.0,28090.0,0.32636778]
[1680597985520,0.92962895,28091.0,28090.0,0.32636778]
[1680597986638,0.75163895,28091.0,28090.0,0.32636778]
[1680597987560,0.75163895,28091.0,28090.0,0.32132974]
[1680597988232,0.97523249,28091.0,28090.0,0.32132974]
[1680597988452,0.97523249,28091.0,28090.0,0.31634208]
[1680597988681,1.40512398,28091.0,28090.0,0.31634208]
[1680597989137,0.97523249,28091.0,28090.0,0.31634208]
[1680597989366,1.41341906,28091.0,28090.0,0.31140429]
[1680597990470,1.41341906,28091.0,28090.0,0.30651588]
[1680597991622,1.41341906,28091.0,28090.0,0.30167636]
[1680597992400,1.41341906,28091.0,28090.0,0.29688523]
[1680597993022,1.41341906,28091.0,28090.0,0.001]
[1680597993345,0.3,28090.0,28086.0,0.03187733]
[1680597993552,0.0017,28088.0,28086.0,0.03187733]
[1680597993991,0.0017,28088.0,28085.0,0.00018]
[1680597994153,0.0017,28088.0,28084.0,0.00018]
[1680597994354,0.4713624,28087.0,28084.0,0.03959635]
[1680597994727,0.3,28086.0,28084.0,0.00018]
[1680597995412,0.04718659,28085.0,28084.0,0.00018]
[1680597995628,0.12431798,28085.0,28084.0,0.00018]
[1680597995845,0.04718659,28085.0,28084.0,0.00018]
[1680597996275,0.04718659,28085.0,28084.0,0.00012]
[1680597996541,0.04718659,28085.0,28084.0,0.00018]
[1680597996956,0.04918659,28085.0,28084.0,0.00018]
[1680597997165,0.12388382,28085.0,28084.0,0.00018]
[1680597998240,0.12188382,28085.0,28084.0,0.00018]
[1680597998454,0.13088382,28085.0,28084.0,0.00018]
[1680598000907,0.13258382,28085.0,28084.0,0.00018]
[1680598001122,0.13258382,28085.0,28084.0,0.00012]
[1680598001336,0.13258382,28085.0,28083.0,0.11272719]
[1680598001580,0.08654675,28084.0,28083.0,0.02812681]
[1680598001838,0.05788659,28085.0,28083.0,0.00018]
[1680598002058,0.37909667,28084.0,28083.0,0.00018]
[1680598002500,0.41955652,28084.0,28083.0,0.00018]
[1680598004711,0.42855652,28084.0,28083.0,0.00018]
[1680598005362,0.42855652,28084.0,28083.0,0.08496038]
[1680598005575,0.1277773,28084.0,28083.0,0.08496038]
[1680598005791,0.04945985,28084.0,28083.0,0.08496038]
[1680598006012,0.04945985,28084.0,28083.0,0.00018]
[1680598008316,0.39665485,28084.0,28083.0,0.00018]
[1680598008753,0.39665485,28084.0,28083.0,0.0331089]
[1680598008977,0.38595485,28084.0,28083.0,0.0331089]
[1680598009211,0.34945985,28084.0,28083.0,0.0331089]
[1680598009450,0.12866078,28084.0,28083.0,0.0331089]
[1680598009672,0.15566078,28084.0,28083.0,0.0329289]
[1680598010095,0.15566078,28084.0,28082.0,0.00018]
[1680598010315,0.05745985,28084.0,28082.0,0.08478038]
[1680598010573,0.06657532,28084.0,28082.0,0.08478038]
[1680598010975,0.03957532,28084.0,28082.0,0.08478038]
[1680598011190,0.04857532,28084.0,28082.0,0.08478038]
[1680598011412,0.03957532,28084.0,28082.0,0.11408575]
[1680598011644,0.04157532,28084.0,28082.0,0.11408575]
[1680598011857,0.03957532,28084.0,28082.0,0.11408575]
[1680598012068,0.04857532,28084.0,28082.0,0.11408575]
[1680598012510,0.42953905,28084.0,28082.0,0.08478038]
[1680598012729,0.42953905,28084.0,28081.0,0.12735058]
[1680598012730,0.3,28083.0,28081.0,0.12363406]
[1680598012947,0.342276,28083.0,28081.0,0.25080464]
[1680598013215,0.3,28083.0,28081.0,0.25080464]
[1680598013625,0.37217036,28083.0,28081.0,0.25080464]
[1680598014577,0.302,28083.0,28082.0,0.08478038]
[1680598014798,0.002,28083.0,28082.0,0.21213096]
[1680598015330,0.36008292,28083.0,28082.0,0.08496038]
[1680598015542,0.302,28083.0,28082.0,0.08496038]
[1680598015766,0.3,28083.0,28082.0,0.08496038]
[1680598016751,0.309,28083.0,28082.0,0.29687381]
[1680598016951,0.309,28083.0,28082.0,0.12735058]
[1680598017181,0.309,28083.0,28082.0,0.54793207]
[1680598017417,0.38283156,28083.0,28082.0,0.54793207]
[1680598018010,0.309,28083.0,28082.0,0.54793207]
[1680598018363,0.34755105,28083.0,28082.0,0.54793207]
[1680598020572,0.33855105,28083.0,28082.0,0.54793207]
[1680598020784,0.34755105,28083.0,28082.0,0.12735058]
[1680598020998,0.33855105,28083.0,28082.0,0.29687381]
[1680598021214,0.35355105,28083.0,28082.0,0.7174553]
[1680598021427,0.35355105,28083.0,28082.0,0.61945753]
[1680598021644,0.05355105,28083.0,28082.0,0.61945753]
[1680598022817,0.03855105,28083.0,28082.0,0.61945753]
[1680598023039,0.06055105,28083.0,28082.0,0.19887604]
[1680598023463,0.06055105,28083.0,28082.0,0.61945753]
[1680598025491,0.06055105,28083.0,28082.0,0.63539953]
[1680598025660,0.06055105,28083.0,28082.0,0.61945753]
[1680598026888,0.14284819,28083.0,28082.0,0.71778602]
[1680598027104,0.14284819,28083.0,28082.0,0.7177954]
[1680598027728,0.14284819,28083.0,28082.0,0.7176154]
[1680598027938,0.14284819,28083.0,28082.0,0.54809217]
[1680598028369,0.14284819,28083.0,28082.0,0.7176154]
[1680598028573,0.14284819,28083.0,28082.0,0.54809217]
[1680598028993,0.14284819,28083.0,28082.0,0.7176154]
[1680598030045,0.14284819,28083.0,28082.0,0.54809217]
[1680598030876,0.14284819,28083.0,28082.0,0.7176154]
[1680598032916,0.14284819,28083.0,28082.0,0.59010472]
[1680598033131,0.14284819,28083.0,28082.0,0.71762531]
[1680598033574,0.14284819,28083.0,28082.0,0.51762531]
[1680598037099,0.14284819,28083.0,28082.0,0.42058149]
[1680598037874,0.52791168,28083.0,28082.0,0.42058149]
[1680598038099,0.82809168,28083.0,28082.0,0.42058149]
[1680598038584,0.82809168,28083.0,28081.0,0.6326132]
[1680598038778,0.82791168,28083.0,28082.0,0.42058149]
[1680598038998,0.82809168,28083.0,28081.0,0.6326132]
[1680598039225,0.3,28082.0,28081.0,0.63246357]
[1680598039445,0.3,28082.0,28081.0,0.6326132]
[1680598040362,0.3404772,28082.0,28081.0,0.6326132]
[1680598040580,0.43758637,28082.0,28081.0,0.6326132]
[1680598041914,0.43758637,28082.0,28081.0,0.1702625]
[1680598042176,0.43758637,28082.0,28081.0,0.59084399]
[1680598047118,0.8412858,28082.0,28081.0,0.59084399]
[1680598047317,0.8412858,28082.0,28081.0,0.1702625]
[1680598049886,0.8863788,28082.0,28081.0,0.1702625]
[1680598050941,0.8874788,28082.0,28081.0,0.1702625]
[1680598051992,0.8724788,28082.0,28081.0,0.1702625]
[1680598052198,0.8273858,28082.0,28081.0,0.1702625]
[1680598052669,0.8720388,28082.0,28081.0,0.12780106]
[1680598052857,0.8273858,28082.0,28081.0,0.12765143]
[1680598053033,0.8493858,28082.0,28081.0,0.12765143]
[1680598057141,0.8493858,28082.0,28081.0,0.54823292]
[1680598057359,0.8493858,28082.0,28081.0,0.54838255]
[1680598057583,0.8493858,28082.0,28081.0,0.12780106]
[1680598057766,0.8493858,28082.0,28081.0,0.12765143]
[1680598058962,0.76727663,28082.0,28081.0,0.12765143]
[1680598060738,0.76745663,28082.0,28081.0,0.12765143]
[1680598060939,0.77595663,28082.0,28081.0,0.08509203]
[1680598061142,2.10155133,28082.0,28081.0,0.08509203]
[1680598061400,2.35881846,28082.0,28081.0,0.08509203]
[1680598061807,2.33681846,28082.0,28081.0,0.08509203]
[1680598062041,2.36381846,28082.0,28081.0,0.08509203]
[1680598062269,2.36387846,28082.0,28081.0,0.08509203]
[1680598062464,2.36387846,28082.0,28080.0,0.21274346]
[1680598062465,2.36399846,28082.0,28080.0,0.21274346]
[1680598062608,0.28241085,28081.0,28080.0,0.21274346]
[1680598062828,0.30128,28081.0,28080.0,0.21274346]
[1680598063030,0.60128,28081.0,28080.0,0.08509203]
[1680598063234,0.644585,28081.0,28080.0,0.08509203]
[1680598063607,0.71848622,28081.0,28080.0,0.08509203]
[1680598063817,0.71848622,28081.0,28079.0,0.08509203]
[1680598064044,0.45618357,28080.0,28079.0,0.06461433]
[1680598064278,0.45618357,28080.0,28078.0,0.06455433]
[1680598064279,0.041961,28079.0,28078.0,0.06455433]
[1680598064498,0.42024587,28079.0,28077.0,0.12765143]
[1680598064709,0.343841,28078.0,28076.0,0.12780106]
[1680598064923,0.044743,28077.0,28076.0,0.54833088]
[1680598065129,0.07331079,28077.0,28076.0,0.54833088]
[1680598066379,0.0231,28077.0,28076.0,0.54833088]
[1680598066590,0.0231,28077.0,28075.0,0.35666402]
[1680598066800,0.0231,28077.0,28075.0,0.31881393]
[1680598066801,0.0011,28076.0,28075.0,0.31881393]
[1680598067440,0.0011,28076.0,28075.0,0.56937778]
[1680598067655,0.07806188,28076.0,28075.0,0.56937778]
[1680598067941,0.09306188,28076.0,28075.0,0.73949065]
[1680598068619,0.3161,28076.0,28075.0,0.73949065]
[1680598069065,0.3161,28076.0,28075.0,0.75408165]
[1680598069506,0.3161,28076.0,28075.0,0.78895768]
[1680598069733,0.3161,28076.0,28075.0,0.66130625]
[1680598069954,0.3161,28076.0,28075.0,0.64671525]
[1680598070173,0.3161,28076.0,28075.0,0.66223325]
[1680598070401,0.3161,28076.0,28075.0,0.66246625]
[1680598070666,0.3161,28076.0,28075.0,0.36929765]
[1680598070858,0.0161,28076.0,28075.0,0.77422337]
[1680598071005,0.015,28076.0,28075.0,0.78990637]
[1680598072100,0.015,28076.0,28075.0,0.77422337]
[1680598073780,0.015,28076.0,28075.0,0.66226425]
[1680598073990,0.015,28076.0,28075.0,0.64671525]
[1680598074982,0.015,28076.0,28075.0,0.35352788]
[1680598075157,0.015,28076.0,28075.0,0.7742046]
[1680598075359,0.015,28076.0,28075.0,0.64671525]
[1680598075989,0.015,28076.0,28075.0,0.77420228]
[1680598076189,0.015,28076.0,28075.0,0.66221425]
[1680598076393,0.015,28076.0,28075.0,0.35352414]
[1680598076599,0.015,28076.0,28075.0,0.78918486]
[1680598077123,0.015,28076.0,28075.0,0.66169925]
[1680598077337,0.015,28076.0,28075.0,0.64671525]
[1680598077553,0.05736979,28076.0,28075.0,0.3535224]
[1680598077768,0.05736979,28076.0,28075.0,0.78971712]
[1680598077962,0.05736979,28076.0,28075.0,0.61949425]
[1680598078181,0.05736979,28076.0,28075.0,0.66212325]
[1680598078395,0.05736979,28076.0,28075.0,0.78960441]
[1680598078539,0.05736979,28076.0,28075.0,0.78960446]
[1680598078938,0.05736979,28076.0,28075.0,0.61949159]
[1680598080505,0.05736979,28076.0,28075.0,0.78960446]
[1680598081085,0.05736979,28076.0,28075.0,0.66212325]
[1680598081720,0.05736979,28076.0,28075.0,0.7896058]
[1680598082444,0.05736979,28076.0,28075.0,0.66212325]
[1680598084598,0.05736979,28076.0,28075.0,0.36894104]
[1680598084822,0.05736979,28076.0,28075.0,0.66212325]
[1680598085264,0.05736979,28076.0,28075.0,0.36894466]
[1680598085481,0.09686242,28076.0,28075.0,0.78962138]
[1680598085706,0.09686242,28076.0,28075.0,0.77421338]
[1680598086141,0.09686242,28076.0,28075.0,0.7742138]
[1680598086546,0.09686242,28076.0,28075.0,0.64671525]
[1680598086752,0.09686242,28076.0,28075.0,0.35353793]
[1680598086959,0.09686242,28076.0,28075.0,0.64671525]
[1680598087763,0.05736979,28076.0,28075.0,0.64671525]
[1680598088639,0.05736979,28076.0,28075.0,0.66159925]
[1680598088858,0.05736979,28076.0,28075.0,0.64671525]
[1680598089293,0.05736979,28076.0,28075.0,0.66215825]
[1680598089552,0.05736979,28076.0,28075.0,0.64671525]
[1680598089772,0.06636731,28076.0,28075.0,0.64671525]
[1680598091133,0.06636731,28076.0,28075.0,0.60413463]
[1680598092342,0.06636731,28076.0,28075.0,0.26848769]
[1680598092524,0.06636731,28076.0,28075.0,0.14095544]
[1680598093618,0.06636731,28076.0,28075.0,0.26848769]
[1680598094474,0.06636731,28076.0,28075.0,0.14095544]
[1680598094687,0.06636731,28076.0,28075.0,0.26848769]
[1680598095110,0.06636731,28076.0,28075.0,0.14095544]
[1680598096232,0.06636731,28076.0,28075.0,0.26848769]
[1680598096467,0.06636731,28076.0,28075.0,0.14095544]
[1680598096671,0.06636731,28076.0,28075.0,0.26848769]
[1680598096874,0.06636731,28076.0,28075.0,0.14095544]
[1680598099878,0.06636731,28076.0,28075.0,0.10607941]
[1680598100097,0.14164246,28076.0,28075.0,0.02102]
[1680598100318,0.06628979,28076.0,28075.0,0.05252245]
[1680598100745,0.05729227,28076.0,28075.0,0.0209]
[1680598100979,0.05729227,28076.0,28075.0,0.24014025]
[1680598101196,0.05729227,28076.0,28075.0,0.70475184]
[1680598101415,0.01492248,28076.0,28075.0,1.00475184]
[1680598101636,0.01492248,28076.0,28075.0,1.03600064]
[1680598101855,0.01492248,28076.0,28075.0,1.03615027]
[1680598104691,0.01492248,28076.0,28075.0,1.04652105]
[1680598104893,0.01492248,28076.0,28075.0,1.21666938]
[1680598105119,0.01492248,28076.0,28075.0,1.09220668]
[1680598105332,0.01492248,28076.0,28075.0,1.17852368]
[1680598106641,0.01492248,28076.0,28075.0,1.00837584]
[1680598109450,0.01492248,28076.0,28075.0,1.00840547]
[1680598109659,0.01492248,28076.0,28075.0,1.00837584]
[1680598110076,0.01492248,28076.0,28075.0,1.00717584]
[1680598110755,0.01492248,28076.0,28075.0,1.00757584]
[1680598110957,0.01492248,28076.0,28075.0,0.93147584]
[1680598112227,0.01492248,28076.0,28075.0,0.93162547]
[1680598112448,0.01492248,28076.0,28075.0,0.93147584]
[1680598117042,0.01492248,28076.0,28075.0,0.71959376]
[1680598117251,0.01492248,28076.0,28075.0,0.93242648]
[1680598117676,0.01492248,28076.0,28075.0,0.71959376]
[1680598117885,0.01492248,28076.0,28075.0,0.93242143]
[1680598118098,0.01492248,28076.0,28075.0,0.90260045]
[1680598118518,0.01492248,28076.0,28075.0,0.7204115]
[1680598118729,0.01492248,28076.0,28075.0,0.68977278]
[1680598119586,0.01492248,28076.0,28075.0,0.72134999]
[1680598119785,0.01492248,28076.0,28075.0,0.68977278]
[1680598119991,0.01492248,28076.0,28075.0,0.72603963]
[1680598120411,0.01492248,28076.0,28075.0,0.68977278]
[1680598121489,0.01492248,28076.0,28075.0,0.72920316]
[1680598122021,0.01492248,28076.0,28075.0,0.68977278]
[1680598122481,0.01492248,28076.0,28075.0,1.0199488]
[1680598122920,0.01492248,28076.0,28075.0,0.76537278]
[1680598123141,0.00018,28081.0,28075.0,0.76537278]
[1680598123357,0.00018,28081.0,28079.0,0.21276108]
[1680598123575,0.00018,28081.0,28080.0,0.09577743]
[1680598124062,0.00018,28081.0,28080.0,0.010673]
[1680598124063,0.09305393,28081.0,28080.0,0.010673]
[1680598124282,0.09305393,28081.0,28075.0,0.001]
[1680598124283,0.285717,28081.0,28076.0,0.00014963]
[1680598124505,0.0258,28077.0,28074.0,0.10600443]
[1680598124728,0.0258,28075.0,28074.0,0.0209]
[1680598126057,0.0348,28075.0,28074.0,0.0209]
[1680598127368,0.082958,28075.0,28074.0,0.0209]
[1680598127822,0.03498,28075.0,28074.0,0.0209]
[1680598128931,0.16130215,28075.0,28074.0,0.0209]
[1680598129204,0.11383515,28075.0,28074.0,0.0209]
[1680598129854,0.14881757,28075.0,28074.0,0.05725493]
[1680598130526,0.06996242,28075.0,28074.0,0.05725493]
[1680598130745,0.36146242,28075.0,28074.0,0.05725493]
[1680598131413,0.32648,28075.0,28074.0,0.0209]
[1680598131644,0.30918,28075.0,28074.0,0.06512131]
[1680598131838,0.00918,28075.0,28074.0,0.06512131]
[1680598132091,0.009,28075.0,28074.0,0.15022574]
[1680598132537,0.009,28075.0,28074.0,0.06512131]
[1680598132764,0.009,28075.0,28074.0,0.15022574]
[1680598133198,0.009,28075.0,28074.0,0.13942674]
[1680598134072,0.009,28075.0,28074.0,0.05432231]
[1680598134557,0.009,28075.0,28074.0,0.13942674]
[1680598136492,0.009,28075.0,28074.0,0.15000174]
[1680598137184,0.009,28075.0,28074.0,0.13942674]
[1680598137402,0.03782845,28075.0,28074.0,0.13942674]
[1680598137843,0.0607693,28075.0,28074.0,0.0209]
[1680598138080,0.47986648,28075.0,28074.0,0.0209]
[1680598138307,0.78854648,28075.0,28074.0,0.0209]
[1680598138963,0.77954648,28075.0,28074.0,0.0209]
[1680598139178,0.80154648,28075.0,28074.0,0.0209]
[1680598139403,0.77936648,28075.0,28074.0,0.01217]
[1680598139657,0.4091533,28075.0,28074.0,0.01217]
[1680598139873,0.4361533,28075.0,28074.0,0.01217]
[1680598140088,0.79561903,28075.0,28074.0,0.01217]
[1680598140306,0.43061245,28075.0,28074.0,0.00106247]
[1680598140776,0.63061245,28075.0,28074.0,0.00106247]
[1680598141022,0.80161245,28075.0,28074.0,0.00106247]
[1680598141460,0.3,28074.0,28073.0,0.00252747]
[1680598141681,0.77209525,28074.0,28073.0,0.00252747]
[1680598141901,0.94309525,28074.0,28073.0,0.00252747]
[1680598143010,0.97009525,28074.0,28073.0,0.00252747]
[1680598143510,1.14867533,28074.0,28073.0,0.00252747]
[1680598143783,0.2,28072.0,28071.0,0.01535989]
[1680598144072,0.734899,28072.0,28071.0,0.01535989]
[1680598144365,0.923299,28072.0,28071.0,0.01535989]
[1680598145342,0.950299,28072.0,28071.0,0.01535989]
[1680598146026,0.923299,28072.0,28071.0,0.01535989]
[1680598146250,1.17029526,28072.0,28071.0,0.01535989]
[1680598146458,1.14329526,28072.0,28071.0,0.01535989]
[1680598146675,1.17029526,28072.0,28071.0,0.01535989]
[1680598148283,1.17029526,28072.0,28071.0,0.01325989]
[1680598150301,1.35671449,28072.0,28071.0,0.01325989]
[1680598152543,1.16652116,28072.0,28071.0,0.0102806]
[1680598153609,1.16652116,28072.0,28071.0,0.0073311]
[1680598154448,1.16652116,28072.0,28071.0,0.0044111]
[1680598155355,1.16652116,28072.0,28071.0,0.0015203]
[1680598155572,1.39219772,28072.0,28071.0,0.0015203]
[1680598155782,1.20577849,28072.0,28071.0,0.0015203]
[1680598156456,0.3,28071.0,28068.0,0.0209]
[1680598156678,0.0173,28069.0,28068.0,0.0209]
[1680598156868,0.06687,28069.0,28068.0,0.0209]
[1680598157181,0.07537,28069.0,28068.0,0.0209]
[1680598157435,0.09526496,28069.0,28068.0,0.16279681]
[1680598157640,0.05539496,28069.0,28068.0,0.16285681]
[1680598157914,0.05539496,28069.0,28068.0,0.02108]
[1680598158186,0.05539496,28069.0,28068.0,0.3438]
[1680598158392,0.33971845,28074.0,28068.0,0.37474246]
[1680598158612,0.01758,28075.0,28069.0,0.14189681]
[1680598158872,0.00908135,28076.0,28073.0,0.0762]
[1680598159093,0.00018,28080.0,28075.0,0.0762]
[1680598159316,0.35899953,28081.0,28076.0,0.24009081]
[1680598159528,0.35899953,28081.0,28077.0,0.022744]
[1680598159778,0.35899953,28081.0,28076.0,0.21827681]
[1680598159779,0.35899953,28081.0,28078.0,0.14189681]
[1680598160289,0.35899953,28081.0,28077.0,0.00018]
[1680598160522,0.03434999,28080.0,28077.0,0.023265]
[1680598160961,0.07368494,28080.0,28077.0,0.023265]
[1680598161190,0.03434999,28080.0,28079.0,0.022026]
[1680598162268,0.04434999,28080.0,28079.0,0.001]
[1680598162483,0.01,28080.0,28079.0,0.001]
[1680598163574,0.01,28080.0,28079.0,0.05643081]
[1680598164572,0.01,28080.0,28079.0,0.03352581]
[1680598164805,0.01,28080.0,28079.0,0.05587581]
[1680598165595,0.37834824,28080.0,28079.0,0.02335]
[1680598165807,0.31,28080.0,28079.0,0.03263169]
[1680598166018,0.31,28080.0,28079.0,0.05444769]
[1680598166751,0.01,28080.0,28079.0,0.001]
[1680598167380,0.04434848,28080.0,28079.0,0.001]
[1680598168472,0.04434848,28080.0,28079.0,0.022718]
[1680598168696,0.12001937,28080.0,28079.0,0.022718]
[1680598169134,0.04434848,28080.0,28079.0,0.022718]
[1680598169536,0.04434848,28080.0,28079.0,0.001]
[1680598170868,0.04434848,28080.0,28079.0,0.025047]
[1680598171092,0.04434848,28080.0,28079.0,0.05581536]
[1680598171542,0.01,28080.0,28079.0,0.05581536]
[1680598173106,0.01,28080.0,28079.0,0.05599536]
[1680598173528,0.03884349,28080.0,28079.0,0.05599536]
[1680598174426,0.03884349,28080.0,28079.0,0.05581536]
[1680598175565,0.03884349,28080.0,28079.0,0.05599536]
[1680598177484,0.03884349,28080.0,28079.0,0.05593536]
[1680598177708,0.03884349,28080.0,28079.0,0.05599536]
[1680598182262,0.03875079,28080.0,28079.0,0.05581536]
[1680598188230,0.03875079,28080.0,28079.0,0.03176836]
[1680598189095,0.03875079,28080.0,28079.0,0.05396536]
[1680598189322,0.03875079,28080.0,28079.0,0.05439336]
[1680598189806,0.07832096,28080.0,28079.0,0.05439336]
[1680598190021,0.03875079,28080.0,28079.0,0.05439336]
[1680598190657,0.03875079,28080.0,28079.0,0.03176836]
[1680598191994,0.03875079,28080.0,28079.0,0.05447236]
[1680598193127,0.03875079,28080.0,28079.0,0.03176836]
[1680598194447,0.03875079,28080.0,28079.0,0.05370836]
[1680598195578,0.03875079,28080.0,28079.0,0.03176836]
[1680598196882,0.03875079,28080.0,28079.0,0.05421836]
[1680598197285,1.32074071,28080.0,28079.0,0.05415333]
[1680598197499,1.32074071,28080.0,28079.0,0.03170333]
[1680598197922,1.32074071,28080.0,28079.0,0.00093497]
[1680598199259,1.32074071,28080.0,28079.0,0.06023858]
[1680598200418,1.32074071,28080.0,28079.0,0.03853858]
[1680598201878,1.32074071,28080.0,28079.0,0.06150858]
[1680598202240,1.32074071,28080.0,28079.0,0.14661301]
[1680598202457,1.32092071,28080.0,28079.0,0.08070858]
[1680598204211,1.32092071,28080.0,28079.0,0.20836523]
[1680598204631,1.32092071,28080.0,28079.0,0.62900693]
[1680598205686,1.32092071,28080.0,28079.0,0.62912693]
[1680598205892,1.32092071,28080.0,28079.0,0.62900693]
[1680598206105,1.32087922,28080.0,28079.0,0.62900693]
[1680598206294,1.32088562,28080.0,28079.0,0.62900693]
[1680598206497,0.03893079,28080.0,28079.0,0.62900693]
[1680598206698,0.03875079,28080.0,28079.0,0.62900693]
[1680598207754,1.32071257,28080.0,28079.0,0.27050698]
[1680598207960,1.32089257,28080.0,28079.0,0.62799293]
[1680598208270,0.03893079,28080.0,28079.0,0.37800775]
[1680598208522,0.03875079,28080.0,28079.0,0.37800775]
[1680598209599,0.03875079,28080.0,28079.0,0.79864727]
[1680598209815,0.03875079,28080.0,28079.0,0.62963575]
[1680598210468,0.03875079,28080.0,28079.0,0.29411867]
[1680598210687,0.03875079,28080.0,28079.0,0.71475819]
[1680598210914,0.03875079,28080.0,28079.0,0.29411867]
[1680598211143,0.03875079,28080.0,28079.0,0.62963271]
[1680598212332,0.03875079,28080.0,28079.0,0.79984158]
[1680598212766,0.03875079,28080.0,28079.0,0.62963271]
[1680598212983,0.03875079,28080.0,28079.0,0.79984158]
[1680598213656,0.03875079,28080.0,28079.0,0.62963271]
[1680598213859,0.03875079,28080.0,28079.0,0.80546132]
[1680598214080,0.03875079,28080.0,28079.0,0.71985245]
[1680598214304,0.03875079,28080.0,28079.0,0.97442847]
[1680598214522,0.03875079,28080.0,28079.0,1.01985245]
[1680598214523,0.0099073,28080.0,28079.0,1.01985245]
[1680598214738,0.0099073,28080.0,28079.0,1.03409745]
[1680598215200,0.0099073,28080.0,28079.0,1.65188403]
[1680598215201,7.3e-06,28080.0,28079.0,1.65188403]
[1680598215429,0.00018,28088.0,28084.0,0.2]
[1680598215661,0.00018,28088.0,28085.0,0.25043655]
[1680598215881,0.00018,28088.0,28086.0,0.021404]
[1680598216324,0.00018,28090.0,28087.0,0.03227849]
[1680598216586,0.00018,28090.0,28087.0,0.1741753]
[1680598216816,0.00018,28090.0,28087.0,0.03227849]
[1680598216817,0.001,28088.0,28087.0,0.03227849]
[1680598217045,0.00018,28088.0,28087.0,0.05535649]
[1680598217264,0.00018,28088.0,28087.0,0.07235649]
[1680598217485,0.00018,28088.0,28087.0,0.05535649]
[1680598217702,0.00118,28088.0,28087.0,0.07235649]
[1680598218393,0.00106,28088.0,28086.0,6e-05]
[1680598218621,0.001,28088.0,28086.0,0.02261983]
[1680598218854,0.001,28088.0,28087.0,0.015752]
[1680598219047,0.71851273,28090.0,28087.0,0.015752]
[1680598219271,0.002,28088.0,28087.0,0.022752]
[1680598221273,0.002,28088.0,28087.0,0.02812676]
[1680598222435,0.002,28088.0,28087.0,0.022752]
[1680598223120,0.002,28088.0,28087.0,0.307352]
[1680598223345,0.002,28088.0,28087.0,0.478172]
[1680598223567,0.002,28088.0,28087.0,0.31405973]
[1680598223785,0.002,28088.0,28087.0,0.307352]
[1680598224228,0.002,28088.0,28087.0,0.607352]
[1680598224671,0.002,28088.0,28087.0,0.778172]